[Event "FRA-chT Top 12"]
[Site "Brest"]
[Date "2018.06.05"]
[Round "11"]
[White "Zhigalko, Sergei"]
[Black "Heimann, Andreas"]
[Result "1/2-1/2"]
[ECO "E54"]
[WhiteElo "2606"]
[BlackElo "2588"]
[Annotator "ChessBase II"]
[PlyCount "120"]
[EventDate "2018.05.26"]
[EventType "team-tourn"]
[EventRounds "11"]
[EventCountry "FRA"]
[SourceTitle "EXT 2019"]
[Source "ChessBase"]
[SourceDate "2018.10.10"]
[SourceVersion "1"]
[SourceVersionDate "2018.10.10"]
[SourceQuality "1"]
[WhiteTeam "Bois Colombes"]
[BlackTeam "Mulhouse Philidor"]
[WhiteTeamCountry "FRA"]
[BlackTeamCountry "FRA"]
[TimeControl "40/5400+30:1800+30"]

1. Nf3 {[%emt 0:00:00]} d5 {[%emt 0:00:17]} 2. d4 {[%emt 0:00:00]} Nf6 {[%emt 0:00:08]} 3. c4 {[%emt 0:00:39]} e6 {[%emt 0:00:05]} 4. Nc3 {[%emt 0:03:06]} Bb4 {[%emt 0:00:07]} 5. e3 {[%emt 0:11:47]} O-O {[%emt 0:00:20]} (5... c6) 6. Bd3 {[%emt 0:00:33]} c5 {[%emt 0:00:14]} 7. O-O {[%emt 0:00:29]} cxd4 {[%emt 0:00:07]} 8. exd4 {[%emt 0:00:18]} dxc4 {[%emt 0:00:04]} 9. Bxc4 {[%emt 0:00:05]} b6 {[%emt 0:00:04]} 10. Bg5 {[%emt 0:12:18]} Bb7 {[%emt 0:00:17]} 11. Ne5 {[%emt 0:08:03]} Nbd7 {[%emt 0:05:03]} 12. Nxd7 {[%emt 0:09:43]} Qxd7 {[%emt 0:00:10]} 13. Bxf6 {[%emt 0:00:11]} gxf6 {[%emt 0:00:04]} 14. d5 {[%emt 0:02:35]} Bxc3 {[%emt 0:00:56]} 15. bxc3 {[%emt 0:00:25]} Bxd5 {[%emt 0:00:08]} 16. Qg4+ {[%emt 0:00:56]} Kh8 {[%emt 0:00:08]} 17. Qh4 {[%emt 0:00:13]} Kg7 $146 {[%emt 0:03:05]} (17... Bxc4 18. Qxf6+ Kg8 19. Qg5+ Kh8 20. Qf6+ Kg8 21. Qg5+ Kh8 22. Qf6+ Kg8 {½-½ (22) Zhigalko,S (2638)-Adams,M (2727) Heraklio 2017}) 18. Rad1 {[%emt 0:03:37]} Qc6 {[%emt 0:16:04]} 19. Bxd5 {[%emt 0:18:27]} exd5 {[%emt 0:00:06]} 20. Rd3 {[%emt 0:00:14][%csl Rg7]} f5 $1 {[%emt 0:07:08]} 21. Qg3+ {[%emt 0:04:02]} Kh8 {[%emt 0:05:05]} 22. Qe5+ {[%emt 0:00:37]} f6 {[%emt 0:00:06]} 23. Qxf5 {[%emt 0:00:14]} Rad8 {[%emt 0:09:26]} 24. Re1 {[%emt 0:04:45]} Rfe8 {[%emt 0:16:11]} 25. Rde3 {[%emt 0:00:20]} Re4 $132 {[%emt 0:00:06]} 26. f3 {[%emt 0:00:29]} Rxe3 {[%emt 0:00:06]} 27. Rxe3 {[%emt 0:00:02]} Rf8 {[%emt 0:03:25]} 28. h4 Qd6 {[%emt 0:18:19]} 29. h5 {[%emt 0:11:05]} d4 {[%emt 0:00:30]} 30. Rd3 {[%emt 0:01:16]} Qc5 {[%emt 0:07:20]} 31. Qxc5 {[%emt 0:00:25]} bxc5 {[%emt 0:00:05]} 32. cxd4 {[%emt 0:00:03]} Rd8 {[%emt 0:00:24]} 33. d5 {[%emt 0:05:58]} c4 {[%emt 0:00:10]} 34. Rd4 {[%emt 0:00:32]} c3 {[%emt 0:00:20]} 35. g4 {[%emt 0:01:38]} f5 {[%emt 0:08:52]} 36. Kf2 {[%emt 0:01:01]} fxg4 {[%emt 0:00:05]} 37. fxg4 {[%emt 0:00:03]} c2 {[%emt 0:00:25]} 38. Rc4 {[%emt 0:00:02]} Rxd5 {[%emt 0:00:04]} 39. Rxc2 {[%emt 0:00:23]} Ra5 {[%emt 0:00:07]} 40. h6 {[%emt 0:00:24]} Kg8 {[%emt 0:30:06]} 41. Kg3 {[%emt 0:00:00]} Kf7 {[%emt 0:00:00]} 42. Kh4 {[%emt 0:12:13]} Kg6 {[%emt 0:00:00]} 43. Rc6+ {[%emt 0:00:21]} Kf7 {[%emt 0:00:00]} 44. g5 {[%emt 0:04:37]} Rxa2 {[%emt 0:00:00]} 45. Rc7+ {[%emt 0:00:25]} Kg8 {[%emt 0:00:00]} 46. Rc8+ {[%emt 0:00:18]} Kf7 {[%emt 0:00:00]} 47. Rh8 {[%emt 0:00:12]} Kg6 {[%emt 0:00:00]} 48. Rg8+ {[%emt 0:00:03]} Kf5 {[%emt 0:00:00]} 49. Rf8+ {[%emt 0:00:02]} Ke6 {[%emt 0:00:00]} 50. Rh8 {[%emt 0:00:34]} Kf5 {[%emt 0:00:00]} 51. Rxh7 {[%emt 0:00:28]} Rh2+ {[%emt 0:00:00]} 52. Kg3 {[%emt 0:00:03]} Rh5 {[%emt 0:00:00]} 53. Rg7 {[%emt 0:01:11]} a5 {[%emt 0:00:00]} 54. h7 {[%emt 0:05:28]} a4 {[%emt 0:00:00]} 55. g6 {[%emt 0:00:50]} a3 {[%emt 0:00:00]} 56. Ra7 {[%emt 0:09:53]} Kxg6 {[%emt 0:00:00]} 57. Rxa3 {[%emt 0:00:09]} Rxh7 {[%emt 0:00:00]} 58. Ra6+ {[%emt 0:00:03]} Kg7 {[%emt 0:00:00]} 59. Ra7+ {[%emt 0:00:03]} Kg6 {[%emt 0:00:00]} 60. Rxh7 {[%emt 0:00:04]} Kxh7 1/2-1/2